bitfinex-derivatives/quotes_BTCF0:USTF0_20260119
["timestamp","ask_amount","ask_price","bid_price","bid_amount"]
[1768829694808,0.010751,93070.0,93057.0,0.03735514]
[1768829695999,0.010751,93070.0,93058.0,0.03708771]
[1768829697498,0.0688143,93079.0,93058.0,0.03708771]
[1768829697701,0.02292854,93078.0,93058.0,0.03708771]
[1768829697891,0.010752,93067.0,93058.0,0.03708771]
[1768829698390,0.010751,93074.0,93058.0,0.03708771]
[1768829698590,0.02292825,93073.0,93058.0,0.03708771]
[1768829698893,0.02292825,93072.0,93058.0,0.03708771]
[1768829699099,0.010751,93074.0,93058.0,0.03708771]
[1768829699299,0.010752,93065.0,93058.0,0.03708771]
[1768829700997,0.010751,93068.0,93058.0,0.03708771]
[1768829702203,0.16087841,93078.0,93058.0,0.03708771]
[1768829702404,0.010751,93071.0,93059.0,0.03694599]
[1768829702601,0.010751,93070.0,93060.0,0.12854439]
[1768829702801,0.01075,93079.0,93061.0,0.03694599]
[1768829703003,0.02292854,93078.0,93061.0,0.03694599]
[1768829703301,0.02292854,93077.0,93061.0,0.03694599]
[1768829703500,0.02292854,93076.0,93061.0,0.03694599]
[1768829703703,0.02292854,93075.0,93061.0,0.03694599]
[1768829703902,0.02292854,93074.0,93061.0,0.03694599]
[1768829704101,0.02292854,93073.0,93061.0,0.03694599]
[1768829704304,0.02292854,93072.0,93061.0,0.03694599]
[1768829704604,0.01075,93079.0,93061.0,0.03694599]
[1768829704906,0.010751,93070.0,93061.0,0.03694599]
[1768829706413,0.010751,93073.0,93061.0,0.03694599]
[1768829706613,0.02281439,93072.0,93061.0,0.03694599]
[1768829706800,0.010751,93072.0,93061.0,0.03694599]
[1768829707204,0.010751,93071.0,93061.0,0.03694599]
[1768829709204,0.10751,93077.0,93066.0,0.03642241]
[1768829709404,0.03356538,93076.0,93066.0,0.03642241]
[1768829709601,0.02281538,93075.0,93066.0,0.03642241]
[1768829710398,0.01075,93076.0,93067.0,0.01273875]
[1768829710599,0.09676,93077.0,93067.0,0.01273875]
[1768829710910,0.00236334,93089.0,93072.0,0.01273875]
[1768829711106,0.00236334,93089.0,93080.0,0.01273875]
[1768829711107,0.00069883,93089.0,93080.0,0.01273875]
[1768829711307,0.01144783,93089.0,93080.0,0.01273875]
[1768829711707,0.010749,93087.0,93075.0,0.01401214]
[1768829712210,0.010749,93087.0,93074.0,0.0915984]
[1768829712211,0.010749,93085.0,93073.0,0.01401214]
[1768829712402,0.01075,93083.0,93073.0,0.01401214]
[1768829715015,0.010749,93086.0,93073.0,0.01401214]
[1768829715217,0.050749,93086.0,93073.0,0.01401214]
[1768829715704,0.010749,93084.0,93073.0,0.01401214]
[1768829717017,0.00069883,93089.0,93073.0,0.01401214]
[1768829717315,0.00069883,93089.0,93069.0,0.00016122]
[1768829717316,0.01075,93081.0,93069.0,0.00016122]
[1768829717514,0.01075,93079.0,93069.0,0.00016122]
[1768829718111,0.00069883,93089.0,93070.0,0.1050817]
[1768829718310,0.00069883,93089.0,93071.0,0.0134833]
[1768829718510,0.00069883,93089.0,93071.0,0.1050817]
[1768829718712,0.00069883,93089.0,93072.0,0.01321892]
[1768829718906,0.00069883,93089.0,93072.0,0.10481732]
[1768829719112,0.00069883,93089.0,93073.0,0.01321892]
[1768829720518,0.00069883,93089.0,93073.0,0.02396992]
[1768829720817,0.010748,93101.0,93069.0,0.00016122]
[1768829720818,0.09206411,93100.0,93078.0,0.0915984]
[1768829721011,0.09206411,93100.0,93077.0,0.01213378]
[1768829721012,0.010747,93103.0,93089.0,0.01213378]
[1768829721608,0.010748,93101.0,93089.0,0.01213378]
[1768829722512,0.03342752,93098.0,93089.0,0.01213378]
[1768829722827,0.010748,93096.0,93088.0,0.0915984]
[1768829723124,0.010748,93096.0,93085.0,0.009775]
[1768829723427,0.010748,93096.0,93082.0,0.00980467]
[1768829723613,0.06904547,93102.0,93082.0,0.00980467]
[1768829723811,0.06904547,93095.0,93075.0,0.09379598]
[1768829724010,0.16157205,93092.0,93074.0,0.09676]
[1768829724315,0.010749,93088.0,93074.0,0.09676]
[1768829724513,0.050749,93088.0,93074.0,0.10630596]
[1768829724721,0.010749,93091.0,93077.0,0.00954596]
[1768829724910,0.04,93091.0,93074.0,0.09676]
[1768829725112,0.010749,93087.0,93074.0,0.09676]
[1768829725619,0.010749,93087.0,93073.0,0.00954596]
[1768829725925,0.010749,93085.0,93073.0,0.00954596]
[1768829726215,0.010749,93088.0,93073.0,0.00954596]
[1768829728022,0.010749,93084.0,93070.0,0.09676]
[1768829728221,0.010749,93085.0,93070.0,0.09676]
[1768829729623,0.01075,93084.0,93070.0,0.09676]
[1768829731719,0.01075,93084.0,93070.0,0.10434082]
[1768829733417,0.01075,93084.0,93071.0,0.00732728]
[1768829733925,0.01075,93079.0,93069.0,0.00252507]
[1768829735224,0.16157205,93080.0,93062.0,0.05807063]
[1768829735525,0.09252658,93072.0,93064.0,9.6e-07]
[1768829735730,0.16157205,93072.0,93054.0,0.09676]
[1768829735934,0.09252658,93072.0,93054.0,0.10281121]
[1768829736145,0.010751,93069.0,93055.0,0.00605121]
[1768829737739,0.06904547,93069.0,93050.0,0.09676]
[1768829737945,0.010752,93067.0,93050.0,0.09676]
[1768829738646,0.010752,93064.0,93050.0,0.09676]
[1768829738844,0.010752,93064.0,93050.0,0.00495196]
[1768829739545,0.010752,93067.0,93050.0,0.00495196]
[1768829740547,0.010752,93062.0,93050.0,0.00495196]
[1768829742443,0.010753,93055.0,93049.0,0.00236436]
[1768829742643,0.010753,93058.0,93046.0,0.09676]
[1768829742842,0.010753,93056.0,93046.0,0.09676]
[1768829743852,0.06508805,93060.0,93040.0,0.00388933]
[1768829743853,0.010753,93051.0,93040.0,0.00388933]
[1768829745449,0.16178619,93059.0,93040.0,0.00388933]
[1768829745650,0.16178619,93057.0,93038.0,0.09676]
[1768829745850,0.19178619,93057.0,93038.0,0.09676]
[1768829746247,0.010753,93051.0,93038.0,0.09676]
[1768829748152,0.010753,93051.0,93038.0,0.09850711]
[1768829748546,0.010753,93051.0,93039.0,0.00150404]
[1768829749953,0.010753,93051.0,93035.0,0.00097791]
[1768829750246,0.010754,93049.0,93035.0,0.00097791]
[1768829750949,0.010754,93045.0,93034.0,0.09676]
[1768829751145,0.010754,93045.0,93029.0,0.00236487]
[1768829751146,0.20178619,93045.0,93029.0,0.00236487]
[1768829751344,0.010755,93033.0,93020.0,0.00013616]
[1768829751843,0.010755,93036.0,93020.0,0.00013616]
[1768829752245,0.010755,93034.0,93020.0,0.00013616]
[1768829753646,0.010755,93035.0,93020.0,0.00013616]
[1768829755046,0.010755,93033.0,93020.0,0.00013616]
[1768829755956,0.00016122,93036.0,93020.0,0.00013616]
[1768829757253,0.010756,93027.0,93007.0,0.010758]
[1768829757449,0.010756,93027.0,93014.0,0.09676]
[1768829758250,0.00010536,93026.0,93014.0,0.09676]
[1768829758851,0.00010536,93026.0,93007.0,0.10971908]
[1768829759060,0.00010536,93026.0,93010.0,0.0968]
[1768829760354,0.00010536,93026.0,93012.0,0.09896108]
[1768829760755,0.00010536,93026.0,93013.0,0.010758]
[1768829760956,0.010756,93032.0,93015.0,0.10971808]
[1768829761861,0.010756,93032.0,93017.0,0.010757]
[1768829762062,0.010753,93051.0,93024.0,0.09896108]
[1768829762389,0.010753,93051.0,93015.0,0.010757]
[1768829762390,0.010754,93044.0,93028.0,0.10971708]
[1768829762866,0.0968,93054.0,93031.0,0.09896108]
[1768829763164,0.0968,93054.0,93031.0,0.10971708]
[1768829763365,0.010754,93048.0,93033.0,0.09896108]
[1768829765966,0.010754,93047.0,93033.0,0.09896108]
[1768829767370,0.010753,93051.0,93036.0,0.09896108]
[1768829768158,0.16185131,93059.0,93036.0,0.09896108]
[1768829768360,0.0230121,93058.0,93036.0,0.09896108]
[1768829768667,0.0230121,93057.0,93036.0,0.09896108]
[1768829768866,0.08508371,93057.0,93036.0,0.09896108]
[1768829769068,0.06207161,93057.0,93036.0,0.09896108]
[1768829770269,0.02302642,93056.0,93036.0,0.09896108]
[1768829770570,0.010753,93052.0,93036.0,0.09896108]
[1768829771767,0.16185131,93056.0,93036.0,0.09896108]
[1768829771967,0.010754,93048.0,93036.0,0.09896108]
[1768829773873,0.010754,93048.0,93036.0,0.09771108]
[1768829774270,0.010753,93051.0,93036.0,0.09771108]
[1768829774673,0.00236436,93049.0,93036.0,0.09771108]
[1768829776469,0.00236436,93049.0,93036.0,0.10846608]
[1768829777176,0.00236436,93049.0,93038.0,0.010755]
[1768829780474,0.00236436,93049.0,93041.0,0.010754]
[1768829781472,0.00236436,93049.0,93039.0,0.18037531]
[1768829781675,0.010752,93060.0,93047.0,0.010754]
[1768829781876,0.02306324,93059.0,93050.0,0.18037531]
[1768829782071,0.010752,93060.0,93050.0,0.18037531]
[1768829782271,0.02306325,93059.0,93050.0,0.18037531]
[1768829782480,0.010752,93060.0,93047.0,0.09896108]
[1768829782678,0.02306119,93059.0,93047.0,0.09896108]
[1768829782879,0.010752,93060.0,93047.0,0.09896108]
[1768829783079,0.02306127,93059.0,93047.0,0.09896108]
[1768829783280,0.010752,93060.0,93047.0,0.09896108]
[1768829783480,0.02305973,93059.0,93047.0,0.09896108]
[1768829783678,0.06342872,93065.0,93042.0,0.0945908]
[1768829783880,0.010752,93066.0,93031.0,0.00016122]
[1768829783881,0.16184684,93051.0,93031.0,0.00016122]
[1768829784084,0.16184684,93050.0,93032.0,0.107555]
[1768829784581,0.010754,93049.0,93032.0,0.107555]
[1768829785885,0.010754,93049.0,93033.0,0.010755]
[1768829786380,0.16184684,93055.0,93035.0,0.0945908]
[1768829786580,0.010753,93052.0,93037.0,0.1053458]
[1768829788282,0.010753,93055.0,93038.0,0.010755]
[1768829788485,0.050753,93055.0,93038.0,0.010755]
[1768829788785,0.010753,93053.0,93038.0,0.010755]
[1768829790487,0.010753,93055.0,93040.0,0.010755]
[1768829790690,0.050753,93055.0,93040.0,0.010755]
[1768829790873,0.050753,93055.0,93040.0,0.19113031]
[1768829792779,0.010753,93052.0,93038.0,0.010755]
[1768829793383,0.010753,93055.0,93038.0,0.010755]
[1768829793586,0.010753,93053.0,93038.0,0.010755]
[1768829793789,0.010753,93054.0,93039.0,0.010755]
[1768829793980,0.010753,93054.0,93037.0,0.010755]
[1768829794682,0.010753,93053.0,93037.0,0.010755]
[1768829795084,0.010753,93053.0,93038.0,0.010755]
[1768829795283,0.010753,93055.0,93038.0,0.010755]
[1768829795483,0.040753,93055.0,93046.0,0.0067873]
[1768829796287,0.03,93055.0,93046.0,0.0067873]
[1768829796489,0.03,93055.0,93036.0,0.0968]
[1768829796683,0.010753,93053.0,93037.0,0.010755]
[1768829798489,0.010753,93053.0,93038.0,0.010755]
[1768829798792,0.010753,93053.0,93039.0,0.010755]
[1768829801089,0.15849196,93053.0,93036.0,0.0968]
[1768829801286,0.15849196,93052.0,93036.0,0.0968]
[1768829801692,0.010753,93050.0,93036.0,0.0968]
[1768829803591,0.10730943,93052.0,93036.0,0.0968]
[1768829804796,0.09655643,93052.0,93037.0,0.010755]
[1768829805394,0.07268853,93056.0,93034.0,0.0968]
[1768829805587,0.02308587,93055.0,93040.0,0.18037531]
[1768829805787,0.02308587,93054.0,93040.0,0.18037531]
[1768829805988,0.02308587,93054.0,93042.0,0.010754]
[1768829806195,0.09655643,93058.0,93040.0,0.18037531]
[1768829806499,0.02308694,93057.0,93040.0,0.18037531]
[1768829806683,0.02308694,93056.0,93040.0,0.18037531]
[1768829806998,0.05308694,93056.0,93045.0,0.010754]
[1768829807295,0.05308694,93056.0,93040.0,0.18037531]
[1768829807296,0.02308694,93055.0,93042.0,0.010754]
[1768829807690,0.02308694,93054.0,93042.0,0.010754]
[1768829807889,0.010753,93057.0,93043.0,0.010754]
[1768829808085,0.02308816,93056.0,93044.0,0.010754]
[1768829808292,0.02308816,93055.0,93044.0,0.010754]
[1768829808593,0.02308816,93054.0,93044.0,0.010754]
[1768829808796,0.09655643,93058.0,93044.0,0.010754]
[1768829809101,0.02309289,93057.0,93044.0,0.010754]
[1768829809291,0.02309289,93056.0,93044.0,0.010754]
[1768829809484,0.02309289,93055.0,93044.0,0.010754]
[1768829809683,0.02309289,93055.0,93041.0,0.09998036]
[1768829809900,0.02309289,93054.0,93041.0,0.09998036]
[1768829810098,0.010752,93059.0,93045.0,0.010754]
[1768829810301,0.02309569,93058.0,93045.0,0.010754]
[1768829810601,0.02309569,93057.0,93047.0,0.010754]
[1768829810892,0.02309569,93056.0,93046.0,0.010754]
[1768829811093,0.010752,93059.0,93046.0,0.010754]
[1768829811298,0.02309633,93058.0,93041.0,0.09998036]
[1768829811498,0.02309633,93057.0,93041.0,0.09998036]
[1768829811800,0.010753,93054.0,93041.0,0.11073436]
[1768829812095,0.010753,93057.0,93041.0,0.11073436]
[1768829812291,0.010753,93054.0,93041.0,0.09998036]
[1768829812498,0.19335643,93063.0,93038.0,0.010755]
[1768829812499,0.010753,93052.0,93038.0,0.010755]
[1768829812697,0.010753,93052.0,93040.0,0.18037531]
[1768829812898,0.010753,93052.0,93038.0,0.010755]
[1768829813387,0.010754,93049.0,93035.0,0.09998036]
[1768829813594,0.06080125,93051.0,93036.0,0.0968]
[1768829813897,0.16817,93051.0,93036.0,0.0968]
[1768829814488,0.010754,93049.0,93030.0,0.27288606]
[1768829814685,0.157417,93047.0,93030.0,0.18037531]
[1768829814891,0.157417,93047.0,93032.0,0.0968]
[1768829815290,0.09661575,93047.0,93033.0,0.010755]
[1768829815799,0.06080125,93051.0,93034.0,0.0968]
[1768829818000,0.157417,93051.0,93034.0,0.0968]
[1768829819502,0.157417,93051.0,93035.0,0.010755]
[1768829819692,0.157417,93051.0,93037.0,0.010755]
[1768829819891,0.010753,93055.0,93037.0,0.010755]
[1768829820094,0.02309717,93054.0,93037.0,0.010755]
[1768829820300,0.04,93054.0,93037.0,0.010755]
[1768829820502,0.07155425,93055.0,93037.0,0.010755]
[1768829820702,0.02309721,93054.0,93037.0,0.010755]
[1768829820902,0.03,93054.0,93037.0,0.010755]
[1768829821505,0.010753,93053.0,93037.0,0.010755]
[1768829822206,0.010753,93054.0,93034.0,0.0968]
[1768829822415,0.040753,93054.0,93034.0,0.0968]
[1768829823507,0.040753,93054.0,93038.0,0.010755]
[1768829824007,0.010753,93053.0,93034.0,0.0968]
[1768829824206,0.010753,93051.0,93037.0,0.010755]
[1768829825502,0.010753,93051.0,93036.0,0.010755]
[1768829825711,0.010753,93054.0,93034.0,0.0968]
[1768829826006,0.040753,93054.0,93034.0,0.0968]
[1768829827310,0.040753,93054.0,93038.0,0.010755]
[1768829827602,0.040753,93054.0,93040.0,0.010755]
[1768829827809,0.010753,93052.0,93040.0,0.010755]
[1768829828108,0.010753,93052.0,93037.0,0.010755]
[1768829828307,0.010753,93050.0,93037.0,0.010755]
[1768829828998,0.010753,93053.0,93038.0,0.010755]
[1768829829198,0.010753,93053.0,93039.0,0.010755]
[1768829830105,0.010753,93051.0,93039.0,0.010755]
[1768829830308,0.010753,93051.0,93036.0,0.010755]
[1768829831808,0.010753,93053.0,93038.0,0.010755]
[1768829832208,0.157417,93055.0,93038.0,0.010755]
[1768829832409,0.010753,93051.0,93036.0,0.010755]
[1768829833208,0.010753,93051.0,93037.0,0.010755]
[1768829834512,0.010753,93053.0,93034.0,0.0968]
[1768829835413,0.010753,93053.0,93038.0,0.010755]
[1768829835907,0.010753,93053.0,93039.0,0.010755]
[1768829836416,0.010753,93053.0,93040.0,0.010754]
[1768829838312,0.010753,93052.0,93038.0,0.010755]
[1768829839417,0.010753,93052.0,93039.0,0.010755]
[1768829839618,0.010753,93054.0,93034.0,0.0968]
[1768829839804,0.010753,93053.0,93034.0,0.0968]
[1768829840529,0.157417,93055.0,93036.0,0.010755]
[1768829840713,0.010754,93049.0,93036.0,0.010755]
[1768829841218,0.157417,93053.0,93034.0,0.107555]
[1768829841416,0.06080125,93049.0,93034.0,0.107555]
[1768829841606,0.010754,93048.0,93035.0,0.010755]
[1768829842114,0.09661575,93050.0,93034.0,0.0968]
[1768829842316,0.168172,93041.0,93031.0,0.00016122]
[1768829842516,0.157417,93040.0,93027.0,0.0968]
[1768829842701,0.06176892,93044.0,93027.0,0.0968]
[1768829842907,0.010754,93048.0,93029.0,0.09521978]
[1768829843110,0.09109128,93050.0,93034.0,0.010755]
[1768829843426,0.02310681,93049.0,93038.0,0.010755]
[1768829843715,0.00016122,93051.0,93038.0,0.010755]
[1768829843912,0.02310753,93050.0,93038.0,0.010755]
[1768829844113,0.00016122,93051.0,93038.0,0.09285491]
[1768829844307,0.00016122,93051.0,93040.0,0.09285491]
[1768829845516,0.00016122,93051.0,93041.0,0.010754]
[1768829848711,0.00016122,93051.0,93042.0,0.010754]
[1768829848917,0.0968,93063.0,93046.0,0.10360891]
[1768829849118,0.02311282,93062.0,93046.0,0.10360891]
[1768829849311,0.02311282,93061.0,93046.0,0.10360891]
[1768829849618,0.02311282,93060.0,93046.0,0.10360891]
[1768829849817,0.02311282,93059.0,93046.0,0.10360891]
[1768829850119,0.02311282,93058.0,93046.0,0.09285491]
[1768829850312,0.02311282,93057.0,93046.0,0.09285491]
[1768829850512,0.010752,93061.0,93043.0,0.010754]
[1768829850714,0.0231154,93060.0,93043.0,0.010754]
[1768829850914,0.0231154,93059.0,93043.0,0.010754]
[1768829851114,0.0231154,93058.0,93043.0,0.010754]
[1768829851313,0.0231154,93057.0,93043.0,0.010754]
[1768829851521,0.010752,93061.0,93043.0,0.010754]
[1768829851712,0.02311518,93060.0,93043.0,0.010754]
[1768829851911,0.02311518,93059.0,93043.0,0.010754]
[1768829852111,0.02311518,93058.0,93043.0,0.010754]
[1768829852312,0.02311518,93057.0,93041.0,0.09285491]
[1768829852513,0.010752,93061.0,93041.0,0.09285491]
[1768829852713,0.02311444,93060.0,93041.0,0.09285491]
[1768829853019,0.02311444,93059.0,93041.0,0.09285491]
[1768829853219,0.02311444,93058.0,93041.0,0.09285491]
[1768829853414,0.02311444,93057.0,93044.0,0.010754]
[1768829853614,0.010752,93061.0,93044.0,0.010754]
[1768829853917,0.02311353,93060.0,93044.0,0.010754]
[1768829854117,0.02311353,93059.0,93044.0,0.010754]
[1768829854417,0.02311353,93058.0,93044.0,0.010754]
[1768829854617,0.02311353,93057.0,93041.0,0.09285491]
[1768829854814,0.01311596,93064.0,93048.0,0.09285491]
[1768829854815,0.00236396,93064.0,93048.0,0.09285491]
[1768829855020,0.00236396,93064.0,93050.0,0.09285491]
[1768829855215,0.00236396,93064.0,93053.0,0.010753]
[1768829855725,0.09109128,93085.0,93068.0,0.010751]
[1768829855919,0.02303857,93082.0,93068.0,0.10360591]
[1768829856223,0.02303857,93081.0,93068.0,0.10360591]
[1768829856426,0.02303857,93080.0,93066.0,0.00016122]
[1768829856617,0.1528602,93078.0,93066.0,0.0968]
[1768829856817,0.06176892,93074.0,93066.0,0.0968]
[1768829857017,0.09109128,93075.0,93066.0,0.0968]
[1768829857722,0.01075,93077.0,93066.0,0.0968]
[1768829860931,0.10184128,93080.0,93066.0,0.0968]
[1768829863231,0.01075,93080.0,93066.0,0.0968]
[1768829863535,0.01075,93078.0,93066.0,0.0968]
[1768829866034,0.01075,93078.0,93064.0,0.09676]
[1768829868223,0.00252468,93084.0,93064.0,0.18968345]
[1768829868426,0.00252468,93084.0,93065.0,0.09292345]
[1768829868630,0.00252468,93084.0,93067.0,0.10367445]
[1768829869418,0.00252468,93084.0,93067.0,0.09292345]
[1768829870825,0.00252468,93084.0,93068.0,0.010751]
[1768829874239,0.00252468,93084.0,93068.0,0.10500035]
[1768829875033,0.01327468,93084.0,93068.0,0.09424935]
[1768829875725,0.01075,93082.0,93068.0,0.09424935]
[1768829876735,0.01327368,93084.0,93068.0,0.09424935]
[1768829879327,0.00252468,93084.0,93069.0,0.010751]
[1768829879834,0.00252468,93084.0,93069.0,0.10500035]
[1768829881028,0.00252468,93084.0,93069.0,0.09424935]
[1768829881735,0.00252468,93084.0,93069.0,0.10500035]
[1768829882137,0.02300804,93083.0,93069.0,0.10500035]
[1768829882332,0.00252468,93084.0,93069.0,0.10500035]
[1768829882333,0.00252468,93084.0,93069.0,0.09424935]
[1768829882537,0.09676,93107.0,93085.0,0.10499835]
[1768829882729,0.04236295,93104.0,93088.0,0.09424935]
[1768829882928,0.010748,93101.0,93088.0,0.09424935]
[1768829883337,0.010748,93101.0,93083.0,0.10499935]
[1768829883536,0.010748,93099.0,93083.0,0.10499935]
[1768829883737,0.010748,93099.0,93083.0,0.09424935]
[1768829883928,0.010748,93099.0,93083.0,0.09441048]
[1768829887938,0.15710746,93098.0,93083.0,0.00016113]
[1768829888141,0.10738238,93089.0,93079.0,0.09676]
[1768829889956,0.09663338,93095.0,93079.0,0.09676]
[1768829890946,0.010748,93094.0,93079.0,0.09676]
[1768829893238,0.09663338,93093.0,93079.0,0.09676]
[1768829893438,0.010749,93089.0,93079.0,0.09676]
[1768829893747,0.010749,93092.0,93079.0,0.09676]
[1768829893949,0.010749,93090.0,93079.0,0.09676]
[1768829895356,0.010749,93092.0,93079.0,0.09676]
[1768829896054,0.010749,93092.0,93074.0,0.010751]
[1768829896350,0.010749,93092.0,93075.0,0.09676]
[1768829896846,0.09663338,93096.0,93076.0,0.09424935]
[1768829897051,0.010749,93090.0,93076.0,0.09424935]
[1768829897349,0.010749,93090.0,93075.0,0.09676]
[1768829898544,0.010748,93093.0,93075.0,0.10751]
[1768829899955,0.010749,93089.0,93075.0,0.09676]
[1768829901455,0.18023381,93090.0,93075.0,0.09676]
[1768829901659,0.010749,93085.0,93075.0,0.09676]
[1768829901846,0.010749,93085.0,93071.0,0.10506335]
[1768829902052,0.010749,93085.0,93072.0,0.09676]
[1768829902849,0.010749,93088.0,93072.0,0.09676]
[1768829903047,0.010749,93087.0,93072.0,0.09676]
[1768829903351,0.00134828,93080.0,93072.0,0.09676]
[1768829903854,0.00165264,93076.0,93073.0,0.09935256]
[1768829904548,6.4e-07,93076.0,93074.0,0.010751]
[1768829904754,0.18023381,93090.0,93076.0,0.01075]
[1768829904962,0.010749,93092.0,93077.0,0.01075]
[1768829906147,0.010748,93095.0,93080.0,0.18023381]
[1768829906347,0.010748,93095.0,93080.0,0.27958637]
[1768829906556,0.010748,93095.0,93081.0,0.01075]
[1768829906946,0.010748,93095.0,93081.0,0.11010256]
[1768829908053,0.010748,93095.0,93081.0,0.09935256]
[1768829908253,0.010748,93093.0,93081.0,0.09935256]
[1768829908855,0.010748,93096.0,93081.0,0.09935256]
[1768829909157,0.00128888,93089.0,93081.0,0.09935256]
[1768829909359,0.010748,93096.0,93081.0,0.09935256]
[1768829909964,0.010748,93096.0,93082.0,0.01075]
[1768829910259,0.010748,93096.0,93082.0,0.11010256]
[1768829910453,0.18039494,93100.0,93082.0,0.09935256]
[1768829910655,0.02259502,93099.0,93082.0,0.09935256]
[1768829910960,0.02259502,93098.0,93082.0,0.09935256]
[1768829911161,0.010749,93092.0,93082.0,0.09935256]
[1768829911355,0.010749,93090.0,93076.0,0.19611256]
[1768829911552,0.010749,93088.0,93076.0,0.19611256]
[1768829914362,0.010749,93087.0,93076.0,0.09676]
[1768829915461,0.00139821,93082.0,93076.0,0.09676]
[1768829915662,0.010749,93092.0,93076.0,0.19611256]
[1768829916063,0.010749,93092.0,93077.0,0.09935256]
[1768829917257,0.010749,93090.0,93077.0,0.09935256]
[1768829917858,0.010749,93089.0,93077.0,0.09935256]
[1768829918065,0.010749,93088.0,93076.0,0.09676]
[1768829918255,0.18023381,93090.0,93076.0,0.09676]
[1768829918457,0.010749,93085.0,93076.0,0.09676]
[1768829920067,0.01075,93084.0,93076.0,0.09676]
[1768829920364,0.01075,93084.0,93073.0,0.05796787]
[1768829920557,0.01075,93084.0,93074.0,0.09676]
[1768829921065,0.01075,93084.0,93073.0,0.15472787]
[1768829921658,0.00140603,93079.0,93073.0,0.15472787]
[1768829922256,0.00171875,93076.0,93073.0,0.15472787]
[1768829923169,0.01075,93084.0,93073.0,0.15472787]
[1768829923360,0.00171875,93075.0,93073.0,0.15472787]
[1768829923557,0.01075,93084.0,93073.0,0.15472787]
[1768829923869,0.01075,93084.0,93073.0,0.09676]
[1768829924271,0.010749,93086.0,93073.0,0.09676]
[1768829924571,0.010749,93084.0,93073.0,0.09676]
[1768829924759,0.010749,93090.0,93073.0,0.20423848]
[1768829924966,0.010749,93090.0,93074.0,0.09672748]
[1768829925267,0.010749,93090.0,93076.0,0.10747748]
[1768829926568,0.010749,93093.0,93078.0,0.09672748]
[1768829926770,0.18039494,93100.0,93081.0,0.07986989]
[1768829927270,0.010748,93094.0,93081.0,0.07986989]
[1768829927661,0.010748,93094.0,93079.0,0.01075]
[1768829927975,0.00110188,93087.0,93079.0,0.01075]
[1768829928173,0.010748,93094.0,93079.0,0.01075]
[1768829928470,0.09653991,93099.0,93076.0,0.06912089]
[1768829928673,0.09653991,93098.0,93076.0,0.06912089]
[1768829929974,0.010749,93090.0,93076.0,0.06912089]
[1768829930168,0.09653991,93098.0,93077.0,0.01075]
[1768829930374,0.09653991,93098.0,93076.0,0.06912089]
[1768829930375,0.010749,93091.0,93076.0,0.06912089]
[1768829930674,0.010749,93089.0,93076.0,0.06912089]
[1768829931773,0.010749,93091.0,93076.0,0.06912089]
[1768829932072,0.010749,93091.0,93077.0,0.06894463]
[1768829932672,0.09653991,93098.0,93077.0,0.06894463]
[1768829932875,0.010748,93097.0,93077.0,0.06894463]
[1768829933174,0.010749,93087.0,93077.0,0.06894463]
[1768829933368,0.010749,93090.0,93077.0,0.06894463]
[1768829934377,0.09653991,93098.0,93077.0,0.06894463]
[1768829934579,0.0010117,93084.0,93077.0,0.06894463]
[1768829934878,0.010749,93091.0,93077.0,0.06894463]
[1768829935378,0.010749,93090.0,93077.0,0.06894463]
[1768829936077,0.010749,93089.0,93077.0,0.06894463]
[1768829937575,0.010749,93091.0,93077.0,0.06894463]
[1768829937777,0.09653991,93098.0,93077.0,0.06894463]
[1768829938377,0.010749,93091.0,93077.0,0.06894463]
[1768829938980,0.09653991,93098.0,93077.0,0.06894463]
[1768829939179,0.010749,93089.0,93077.0,0.06894463]
[1768829939376,0.010748,93095.0,93076.0,0.09676]
[1768829939678,0.02254258,93094.0,93076.0,0.09676]
[1768829939871,0.02254258,93093.0,93076.0,0.09676]
[1768829940170,0.09034134,93097.0,93076.0,0.09676]
[1768829940371,0.02254284,93096.0,93076.0,0.09676]
[1768829940570,0.02254284,93095.0,93076.0,0.09676]
[1768829940781,0.02254284,93094.0,93076.0,0.09676]
[1768829940974,0.02254284,93093.0,93076.0,0.09676]
[1768829941279,0.010749,93091.0,93076.0,0.09676]
[1768829941482,0.00183607,93084.0,93076.0,0.09676]
[1768829941667,0.010748,93093.0,93076.0,0.10751]
[1768829942581,0.00016113,93100.0,93081.0,0.06861191]
[1768829942776,0.03329228,93099.0,93083.0,0.01075]
[1768829942977,0.02254428,93098.0,93085.0,0.07936091]
[1768829943183,0.02254428,93097.0,93085.0,0.07936091]
[1768829943490,0.02254428,93096.0,93085.0,0.07936091]
[1768829943682,0.01090913,93100.0,93085.0,0.07936091]
[1768829943884,0.02254299,93099.0,93085.0,0.06861191]
[1768829944084,0.02254299,93098.0,93085.0,0.06861191]
[1768829944274,0.02254299,93097.0,93085.0,0.06861191]
[1768829944473,0.02254299,93096.0,93085.0,0.06861191]
[1768829944778,0.00016113,93100.0,93085.0,0.06861191]
[1768829945083,0.02254269,93099.0,93080.0,0.2505681]
[1768829945274,0.02254269,93098.0,93080.0,0.2505681]
[1768829945472,0.02254269,93097.0,93080.0,0.2505681]
[1768829945673,0.02254269,93096.0,93080.0,0.2505681]
[1768829945869,0.00016113,93100.0,93080.0,0.2505681]
[1768829946082,0.0223372,93099.0,93080.0,0.2505681]
[1768829946387,0.010748,93094.0,93080.0,0.2505681]
[1768829948181,0.010749,93093.0,93080.0,0.2505681]
[1768829948685,0.010749,93093.0,93080.0,0.3473281]
[1768829949676,0.00016113,93100.0,93084.0,0.06941718]
[1768829949880,0.00016113,93100.0,93090.0,0.18023381]
[1768829950280,0.010747,93098.0,93090.0,0.18023381]
[1768829950979,0.00016113,93100.0,93090.0,0.18023381]
[1768829951374,0.010747,93095.0,93090.0,0.18023381]
[1768829951575,0.010747,93097.0,93085.0,0.23891459]
[1768829951986,0.010747,93097.0,93085.0,0.05868078]
[1768829952985,0.01090813,93100.0,93088.0,0.05755076]
[1768829953783,0.00016113,93100.0,93088.0,0.05755076]
[1768829954394,0.01090813,93100.0,93090.0,0.18023381]
[1768829954595,0.010747,93098.0,93090.0,0.18023381]
[1768829954794,0.010747,93098.0,93088.0,0.05755076]
[1768829955795,0.010747,93098.0,93088.0,0.23778457]
[1768829956195,0.00016113,93100.0,93088.0,0.23778457]
[1768829956897,0.01090813,93100.0,93088.0,0.05755076]
[1768829957088,0.010747,93098.0,93088.0,0.05755076]